{"text_format":"3","workbook":"xlsx","n_sheets":2,"sheets":["WACHSTUMSDATEN","WACHSTUMSDIAGRAMM"],"not_rendered":{"charts":1,"defined_names":3},"read":"whole","date_system":"1900"}

{"sheet":"WACHSTUMSDATEN","index":0,"n_rows":23,"n_cols":8,"rows_kept":23,"merged":[[0,1,0,7],[1,2,1,7]]}
[null,"Wachstum des Babys "]
[null,"Name des Babys:","Name"]
[null,"Alter","Kg","Gramm","Gewicht (kg)","Gewicht\nQuantil","Größe (cm)","Größe\nQuantil"]
[null,"Bei der Geburt",7,null,{"$f":"IF(COUNT(Daten[[#This Row],[Kg]:[Gramm]])>0,Daten[[#This Row],[Kg]]+(Daten[[#This Row],[Gramm]]/16),NA())","v":7},40,19.5,70]
[null,"4 Tage",6,8,{"$f":"IF(COUNT(Daten[[#This Row],[Kg]:[Gramm]])>0,Daten[[#This Row],[Kg]]+(Daten[[#This Row],[Gramm]]/16),NA())","v":6.5},41,19.5,70]
[null,"7 Tage",6,4.8,{"$f":"IF(COUNT(Daten[[#This Row],[Kg]:[Gramm]])>0,Daten[[#This Row],[Kg]]+(Daten[[#This Row],[Gramm]]/16),NA())","v":6.3},42,20,71]
[null,"11 Tage",6,9.6,{"$f":"IF(COUNT(Daten[[#This Row],[Kg]:[Gramm]])>0,Daten[[#This Row],[Kg]]+(Daten[[#This Row],[Gramm]]/16),NA())","v":6.6},43,20,71]
[null,"14 Tage",7,null,{"$f":"IF(COUNT(Daten[[#This Row],[Kg]:[Gramm]])>0,Daten[[#This Row],[Kg]]+(Daten[[#This Row],[Gramm]]/16),NA())","v":7},44,20,71]
[null,"18 Tage",7,12,{"$f":"IF(COUNT(Daten[[#This Row],[Kg]:[Gramm]])>0,Daten[[#This Row],[Kg]]+(Daten[[#This Row],[Gramm]]/16),NA())","v":7.75},45,21,72]
[null,"21 Tage",8,8,{"$f":"IF(COUNT(Daten[[#This Row],[Kg]:[Gramm]])>0,Daten[[#This Row],[Kg]]+(Daten[[#This Row],[Gramm]]/16),NA())","v":8.5},46,21,72]
[null,"25 Tage",null,null,{"$f":"IF(COUNT(Daten[[#This Row],[Kg]:[Gramm]])>0,Daten[[#This Row],[Kg]]+(Daten[[#This Row],[Gramm]]/16),NA())","v":{"$error":"#N/A"}}]
[null,"28 Tage",null,null,{"$f":"IF(COUNT(Daten[[#This Row],[Kg]:[Gramm]])>0,Daten[[#This Row],[Kg]]+(Daten[[#This Row],[Gramm]]/16),NA())","v":{"$error":"#N/A"}}]
[null,"5 Wochen",null,null,{"$f":"IF(COUNT(Daten[[#This Row],[Kg]:[Gramm]])>0,Daten[[#This Row],[Kg]]+(Daten[[#This Row],[Gramm]]/16),NA())","v":{"$error":"#N/A"}}]
[null,"6 Wochen",null,null,{"$f":"IF(COUNT(Daten[[#This Row],[Kg]:[Gramm]])>0,Daten[[#This Row],[Kg]]+(Daten[[#This Row],[Gramm]]/16),NA())","v":{"$error":"#N/A"}}]
[null,"7 Wochen",null,null,{"$f":"IF(COUNT(Daten[[#This Row],[Kg]:[Gramm]])>0,Daten[[#This Row],[Kg]]+(Daten[[#This Row],[Gramm]]/16),NA())","v":{"$error":"#N/A"}}]
[null,"2 Monate",null,null,{"$f":"IF(COUNT(Daten[[#This Row],[Kg]:[Gramm]])>0,Daten[[#This Row],[Kg]]+(Daten[[#This Row],[Gramm]]/16),NA())","v":{"$error":"#N/A"}}]
[null,"3 Monate",null,null,{"$f":"IF(COUNT(Daten[[#This Row],[Kg]:[Gramm]])>0,Daten[[#This Row],[Kg]]+(Daten[[#This Row],[Gramm]]/16),NA())","v":{"$error":"#N/A"}}]
[null,"6 Monate",null,null,{"$f":"IF(COUNT(Daten[[#This Row],[Kg]:[Gramm]])>0,Daten[[#This Row],[Kg]]+(Daten[[#This Row],[Gramm]]/16),NA())","v":{"$error":"#N/A"}}]
[null,"9 Monate",null,null,{"$f":"IF(COUNT(Daten[[#This Row],[Kg]:[Gramm]])>0,Daten[[#This Row],[Kg]]+(Daten[[#This Row],[Gramm]]/16),NA())","v":{"$error":"#N/A"}}]
[null,"12 Monate",null,null,{"$f":"IF(COUNT(Daten[[#This Row],[Kg]:[Gramm]])>0,Daten[[#This Row],[Kg]]+(Daten[[#This Row],[Gramm]]/16),NA())","v":{"$error":"#N/A"}}]
[null,"18 Monate",null,null,{"$f":"IF(COUNT(Daten[[#This Row],[Kg]:[Gramm]])>0,Daten[[#This Row],[Kg]]+(Daten[[#This Row],[Gramm]]/16),NA())","v":{"$error":"#N/A"}}]
[null,"24 Monate",null,null,{"$f":"IF(COUNT(Daten[[#This Row],[Kg]:[Gramm]])>0,Daten[[#This Row],[Kg]]+(Daten[[#This Row],[Gramm]]/16),NA())","v":{"$error":"#N/A"}}]
[null,"36 Monate",null,null,{"$f":"IF(COUNT(Daten[[#This Row],[Kg]:[Gramm]])>0,Daten[[#This Row],[Kg]]+(Daten[[#This Row],[Gramm]]/16),NA())","v":{"$error":"#N/A"}}]

{"sheet":"WACHSTUMSDIAGRAMM","index":1,"n_rows":1,"n_cols":2,"rows_kept":1,"merged":[[0,1,1,1]]}
[null,"BABY-WACHSTUMSDIAGRAMM"]